fUSD/lending_fUSD_20240712
["ID","MTS","AMOUNT","RATE_DAILY","PERIOD"]
[331839547,1720789847983,-151.0,0.00013698,2]
[331839548,1720789847992,-500.0,0.00013698,2]
[331839549,1720789848002,-806.51,0.00013698,2]
[331839550,1720789848011,-812.67,0.00013698,2]
[331839551,1720789848020,-151.0,0.00013698,2]
[331839552,1720789848030,-113.35461238,0.00013698,2]
[331839553,1720789848533,-37.64538762,0.00013698,2]
[331839554,1720789848542,-151.0,0.00013698,2]
[331839555,1720789848550,-155.98017667,0.00013698,2]
[331839556,1720789848578,-114.73476733,0.00013698,2]
[331839557,1720789848588,-188.778974,0.00013698,2]
[331839558,1720789848600,-158.24170746,0.00013698,2]
[331839559,1720789848614,-341.75829254,0.00013698,2]
[331839560,1720789848623,-151.0,0.00013698,2]
[331839561,1720789848634,-50.08380375,0.00013698,2]
[331839562,1720789848645,-449.91619625,0.00013698,2]
[331839563,1720789848654,-907.97,0.00013698,2]
[331839564,1720789848664,-151.0,0.00013698,2]
[331839565,1720789848674,-1270.33,0.00013698,2]
[331839566,1720789848684,-151.0,0.00013698,2]
[331839567,1720789848693,-722.28,0.00013698,2]
[331839568,1720789848702,-500.0,0.00013698,2]
[331839569,1720789848712,-519.2446779,0.00013698,2]
[331839570,1720789848723,-220.0953221,0.00013698,2]
[331839571,1720789848733,-151.0,0.00013698,2]
[331839572,1720789848742,-1122.38,0.00013698,2]
[331839573,1720789848752,-545.75,0.00013698,2]
[331839574,1720789848761,-500.0,0.00013698,2]
[331839575,1720789848771,-500.0,0.00013698,2]
[331839576,1720789848780,-417.55019383,0.00013698,2]
[331839577,1720789848793,-290.575285,0.00013698,2]
[331839578,1720789849362,-499.96452117,0.00013698,2]
[331839579,1720789849372,-830.38,0.00013698,2]
[331839580,1720789849382,-1423.47,0.00013698,2]
[331839581,1720789849391,-151.0,0.00013698,2]
[331839582,1720789849401,-935.0,0.00013698,2]
[331839583,1720789849411,-500.0,0.00013698,2]
[331839584,1720789849420,-500.0,0.00013698,2]
[331839585,1720789849430,-732.28,0.00013698,2]
[331839586,1720789849439,-595.63,0.00013698,2]
[331839587,1720789849449,-675.43,0.00013698,2]
[331839588,1720789849458,-151.0,0.00013698,2]
[331839589,1720789849468,-500.0,0.00013698,2]
[331839590,1720789849478,-500.0,0.00013698,2]
[331839591,1720789849488,-500.0,0.00013698,2]
[331839592,1720789849498,-500.0,0.00013698,2]
[331839593,1720789849508,-500.0,0.00013698,2]
[331839594,1720789849517,-970.18,0.00013698,2]
[331839595,1720789849527,-500.0,0.00013698,2]
[331839596,1720789849536,-618.79,0.00013698,2]
[331839597,1720789849547,-500.0,0.00013698,2]
[331839598,1720789849556,-535.05,0.00013698,2]
[331839599,1720789849566,-1432.8,0.00013698,2]
[331839600,1720789849576,-1581.92,0.00013698,2]
[331839601,1720789849586,-500.0,0.00013698,2]
[331839602,1720789849600,-687.34,0.00013698,2]
[331839603,1720789849610,-500.0,0.00013698,2]
[331839604,1720789849620,-1174.83,0.00013698,2]
[331839605,1720789849631,-1262.86,0.00013698,2]
[331839606,1720789849641,-151.0,0.00013698,2]
[331839607,1720789849651,-151.0,0.00013698,2]
[331839608,1720789849661,-1595.82,0.00013698,2]
[331839609,1720789849672,-151.0,0.00013698,2]
[331839610,1720789849682,-500.0,0.00013698,2]
[331839611,1720789849692,-500.0,0.00013698,2]
[331839612,1720789849702,-500.0,0.00013698,2]
[331839613,1720789849712,-698.11,0.00013698,2]
[331839614,1720789849722,-151.0,0.00013698,2]
[331839615,1720789849731,-151.0,0.00013698,2]
[331839616,1720789849741,-1081.07,0.00013698,2]
[331839617,1720789849755,-500.0,0.00013698,2]
[331839618,1720789849765,-500.0,0.00013698,2]
[331839619,1720789849775,-500.0,0.00013698,2]
[331839620,1720789849786,-500.0,0.00013698,2]
[331839621,1720789849796,-984.25,0.00013698,2]
[331839622,1720789849806,-500.0,0.00013698,2]
[331839623,1720789849816,-1268.4,0.00013698,2]
[331839624,1720789849826,-555.49,0.00013698,2]
[331839625,1720789849836,-1120.21,0.00013698,2]
[331839626,1720789849845,-795.45,0.00013698,2]
[331839627,1720789849855,-500.0,0.00013698,2]
[331839628,1720789849866,-500.0,0.00013698,2]
[331839629,1720789849875,-151.0,0.00013698,2]
[331839630,1720789849886,-151.0,0.00013698,2]
[331839631,1720789849896,-683.21,0.00013698,2]
[331839632,1720789849910,-151.0,0.00013698,2]
[331839633,1720789849920,-500.0,0.00013698,2]
[331839634,1720789849929,-500.0,0.00013698,2]
[331839635,1720789849939,-500.0,0.00013698,2]
[331839636,1720789849949,-500.0,0.00013698,2]
[331839637,1720789849959,-500.0,0.00013698,2]
[331839638,1720789849968,-500.0,0.00013698,2]
[331839639,1720789849978,-1120.9,0.00013698,2]
[331839640,1720789849987,-500.0,0.00013698,2]
[331839641,1720789849997,-1221.25,0.00013698,2]
[331839642,1720789850007,-500.0,0.00013698,2]
[331839643,1720789850016,-735.37,0.00013698,2]
[331839644,1720789850026,-1344.67,0.00013698,2]
[331839645,1720789850035,-500.0,0.00013698,2]
[331839646,1720789850045,-801.17,0.00013698,2]
[331839647,1720789850054,-500.0,0.00013698,2]
[331839648,1720789850064,-506.88,0.00013698,2]
[331839649,1720789850074,-500.0,0.00013698,2]
[331839650,1720789850083,-500.0,0.00013698,2]
[331839651,1720789850093,-1386.35,0.00013698,2]
[331839652,1720789850102,-811.43,0.00013698,2]
[331839653,1720789850112,-500.0,0.00013698,2]
[331839654,1720789850122,-554.15,0.00013698,2]
[331839655,1720789850132,-580.15,0.00013698,2]
[331839656,1720789850142,-804.56,0.00013698,2]
[331839657,1720789850152,-366.47039512,0.00013698,2]
[331839658,1720789850161,-537.09,0.00013698,2]
[331839659,1720789850171,-1316.96,0.00013698,2]
[331839660,1720789850181,-558.89,0.00013698,2]
[331839661,1720789850190,-500.0,0.00013698,2]
[331839662,1720789850200,-500.0,0.00013698,2]
[331839663,1720789850209,-500.0,0.00013698,2]
[331839664,1720789850219,-365.79727197,0.00013698,2]
[331839665,1720789850228,-500.0,0.00013698,2]
[331839666,1720789850238,-500.0,0.00013698,2]
[331839667,1720789850247,-500.0,0.00013698,2]
[331839668,1720789850258,-949.28,0.00013698,2]
[331839669,1720789850268,-518.94,0.00013698,2]
[331839670,1720789850278,-772.41,0.00013698,2]
[331839671,1720789850287,-500.0,0.00013698,2]
[331839672,1720789850296,-669.8,0.00013698,2]
[331839673,1720789850305,-788.88,0.00013698,2]
[331839674,1720789850315,-273.54764092,0.00013698,2]
[331839675,1720789850324,-500.0,0.00013698,2]
[331839676,1720789850334,-745.27,0.00013698,2]
[331839677,1720789850343,-608.31,0.00013698,2]
[331839678,1720789850352,-500.0,0.00013698,2]
[331839679,1720789850362,-1442.34,0.00013698,2]
[331839680,1720789850372,-500.0,0.00013698,2]
[331839681,1720789850381,-617.52,0.00013698,2]
[331839682,1720789850391,-821.54,0.00013698,2]
[331839683,1720789850400,-1780.67,0.00013698,2]
[331839684,1720789850410,-731.87,0.00013698,2]
[331839685,1720789850419,-568.39,0.00013698,2]
[331839686,1720789850429,-510.17,0.00013698,2]
[331839687,1720789850438,-693.45,0.00013698,2]
[331839688,1720789850448,-500.0,0.00013698,2]
[331839689,1720789850459,-500.0,0.00013698,2]
[331839690,1720789850469,-595.98,0.00013698,2]
[331839691,1720789850479,-734.43,0.00013698,2]
[331839692,1720789850488,-498.58,0.00013698,2]
[331839693,1720789850497,-500.0,0.00013698,2]
[331839694,1720789850507,-5723.85,0.00013698,2]
[331839695,1720789850517,-500.0,0.00013698,2]
[331839696,1720789850526,-151.0,0.00013698,2]
[331839697,1720789850536,-151.0,0.00013698,2]
[331839698,1720789850546,-536.78,0.00013698,2]
[331839699,1720789850555,-635.2,0.00013698,2]
[331839700,1720789850565,-571.96,0.00013698,2]
[331839701,1720789850574,-151.0,0.00013698,2]
[331839702,1720789850584,-151.0,0.00013698,2]
[331839703,1720789850597,-200.0,0.00013699,2]
[331839704,1720789850606,-200.0,0.00013699,2]
[331839705,1720789850615,-2644.97,0.00013699,2]
[331839706,1720789850625,-200.0,0.00013699,2]
[331839707,1720789850635,-2328.19,0.00013699,2]
[331839708,1720789850644,-3915.83,0.00013699,2]
[331839709,1720789850653,-452.17,0.00013699,5]
[331839710,1720789850663,-151.0,0.00013699,2]
[331839711,1720789850674,-2751.0,0.00013699,2]
[331839712,1720789850683,-151.0,0.00013699,2]
[331839713,1720789850693,-9746.77,0.00013699,2]
[331839714,1720789850703,-1919.67,0.00013699,2]
[331839715,1720789850713,-250.0,0.00013699,2]
[331839716,1720789850723,-350.0,0.00013699,2]
[331839717,1720789850733,-350.0,0.00013699,2]
[331839718,1720789850743,-151.0,0.00013699,2]
[331839719,1720789850752,-1000.0,0.000137,2]
[331839720,1720789850761,-628.74,0.000137,2]
[331839721,1720789850771,-628.74,0.000137,2]
[331839722,1720789850780,-693.0,0.000137,2]
[331839723,1720789850790,-191.46738629,0.00013708,2]
[331839724,1720789850809,-8667.23598844,0.00013708,2]
[331839725,1720789850821,-178.625946,0.00013709,2]
[331839726,1720789850833,-289.218619,0.00013709,2]
[331839727,1720789850843,-464.839045,0.00013709,2]
[331839728,1720789850854,-193.868125,0.00013709,2]
[331839729,1720789850865,-170.29919,0.00013709,2]
[331839730,1720789850876,-802.996467,0.00013709,2]
[331839731,1720789850887,-183.930618,0.00013709,2]
[331839732,1720789850898,-198.106995,0.00013709,2]
[331839733,1720789850909,-180.761638,0.00013709,2]
[331839734,1720789850920,-216.775066,0.00013709,2]
[331839735,1720789850931,-381.14311,0.00013709,2]
[331839736,1720789850943,-183.608263,0.00013709,2]
[331839737,1720789850953,-162.62935,0.00013709,2]
[331839738,1720789850963,-165.539993,0.00013709,2]
[331839739,1720789850974,-273.286825,0.00013709,2]
[331839740,1720789850984,-170.698735,0.00013709,2]
[331839741,1720789850995,-183.608263,0.00013709,2]
[331839742,1720789851005,-160.612004,0.00013709,2]
[331839743,1720789851016,-170.804265,0.00013709,2]
[331839744,1720789851028,-181.575577,0.00013709,2]
[331839745,1720789851040,-164.130128,0.00013709,2]
[331839746,1720789851050,-150.071927,0.00013709,2]
[331839747,1720789851061,-253.08909,0.00013709,2]
[331839748,1720789851071,-374.353208,0.00013709,2]
[331839749,1720789851082,-170.29919,0.00013709,2]
[331839750,1720789851092,-175.595959,0.00013709,2]
[331839751,1720789851102,-158.180681,0.00013709,2]
[331839752,1720789851115,-229.993097,0.00013709,2]
[331839753,1720789851125,-175.595959,0.00013709,2]
[331839754,1720789851135,-5000.0,0.00013719,2]
[331839755,1720789851148,-3271.13086808,0.00013719,2]
[331839756,1720789851158,-462.35092215,0.00013719,2]
[331839757,1720789851169,-151.477,0.0001372,2]
[331839758,1720789851178,-150.166,0.0001372,2]
[331839759,1720789851188,-150.0,0.0001372,2]
[331839760,1720789851199,-292.432,0.0001372,2]
[331839761,1720789851210,-1251.0,0.0001372,2]
[331839762,1720789851222,-359.939,0.0001372,2]
[331839763,1720789851232,-5087.05869539,0.00013733,2]
[331839764,1720789851242,-12780.12103869,0.00013736,2]
[331839765,1720789851252,-500.0,0.00013752,2]
[331839766,1720789851262,-460.30689391,0.00013752,2]
[331839767,1720789851272,-500.0,0.00013752,2]
[331839768,1720789851282,-500.0,0.00013752,2]
[331839769,1720789851292,-500.0,0.00013753,2]
[331839770,1720789851302,-757.29,0.00013753,2]
[331839771,1720789851311,-500.0,0.00013753,2]
[331839772,1720789851322,-500.0,0.00013753,2]
[331839773,1720789851332,-500.0,0.00013753,2]
[331839774,1720789851342,-500.0,0.00013753,2]
[331839775,1720789851352,-824.33,0.00013753,2]
[331839776,1720789851363,-500.0,0.00013753,2]
[331839777,1720789851374,-655.2,0.00013753,2]
[331839778,1720789851384,-500.0,0.00013753,2]
[331839779,1720789851394,-500.0,0.00013753,2]
[331839780,1720789851404,-500.0,0.00013753,2]
[331839781,1720789851414,-500.0,0.00013753,2]
[331839782,1720789851423,-740.8,0.00013753,2]
[331839783,1720789851434,-500.0,0.00013753,2]
[331839784,1720789851444,-579.73,0.00013753,2]
[331839785,1720789851454,-500.0,0.00013753,2]
[331839786,1720789851465,-500.0,0.00013753,2]
[331839787,1720789851475,-736.82,0.00013753,2]
[331839788,1720789851485,-677.32,0.00013753,2]
[331839789,1720789851495,-500.0,0.00013753,2]
[331839790,1720789851505,-500.0,0.00013753,2]
[331839791,1720789851515,-500.0,0.00013753,2]
[331839792,1720789851525,-500.0,0.00013753,2]
[331839793,1720789851534,-671.91,0.00013753,2]
[331839794,1720789851545,-500.0,0.00013753,2]
[331839795,1720789851556,-500.0,0.00013753,2]
[331839796,1720789851566,-500.0,0.00013753,2]
[331839797,1720789851576,-500.0,0.00013753,2]
[331839798,1720789851588,-566.77,0.00013753,2]
[331839799,1720789851601,-500.0,0.00013753,2]
[331839800,1720789851612,-500.0,0.00013753,2]
[331839801,1720789851866,-500.0,0.00013753,2]
[331839802,1720789851898,-537.1,0.00013753,2]
[331839803,1720789851908,-500.0,0.00013753,2]
[331839804,1720789851918,-500.0,0.00013753,2]
[331839805,1720789851927,-500.0,0.00013753,2]
[331839806,1720789851937,-500.0,0.00013753,2]
[331839807,1720789851947,-596.69,0.00013753,2]
[331839808,1720789851958,-500.0,0.00013753,2]
[331839809,1720789851970,-500.0,0.00013753,2]
[331839810,1720789851980,-500.0,0.00013753,2]
[331839811,1720789851989,-233.2016719,0.00013753,2]
[331839812,1720789851999,-500.0,0.00013753,2]
[331839813,1720789852008,-657.88,0.00013753,2]
[331839814,1720789852018,-500.0,0.00013753,2]
[331839815,1720789852028,-678.82,0.00013753,2]
[331839816,1720789852037,-500.0,0.00013753,2]
[331839817,1720789852048,-500.0,0.00013753,2]
[331839818,1720789852058,-500.0,0.00013753,2]
[331839819,1720789852069,-500.0,0.00013753,2]
[331839820,1720789852078,-500.0,0.00013753,2]
[331839821,1720789852088,-934.6,0.00013753,2]
[331839822,1720789852097,-500.0,0.00013753,2]
[331839823,1720789852106,-603.66,0.00013753,2]
[331839824,1720789852115,-538.11,0.00013753,2]
[331839825,1720789852125,-500.0,0.00013753,2]
[331839826,1720789852134,-752.29,0.00013753,2]
[331839827,1720789852143,-500.0,0.00013753,2]
[331839828,1720789852151,-500.0,0.00013753,2]
[331839829,1720789852161,-500.0,0.00013753,2]
[331839830,1720789852170,-500.0,0.00013753,2]
[331839831,1720789852179,-620.67,0.00013753,2]
[331839832,1720789852190,-500.0,0.00013753,2]
[331839833,1720789852199,-500.0,0.00013753,2]
[331839834,1720789852209,-623.06,0.00013753,2]
[331839835,1720789852220,-500.0,0.00013753,2]
[331839836,1720789852229,-758.64,0.00013753,2]
[331839837,1720789852239,-500.0,0.00013753,2]
[331839838,1720789852251,-500.0,0.00013753,2]
[331839839,1720789852261,-500.0,0.00013753,2]
[331839840,1720789852272,-500.0,0.00013753,2]
[331839841,1720789852281,-500.0,0.00013753,2]
[331839842,1720789852291,-500.0,0.00013753,2]
[331839843,1720789852300,-500.0,0.00013753,2]
[331839844,1720789852309,-500.0,0.00013753,2]
[331839845,1720789852318,-510.76,0.00013753,2]
[331839846,1720789852327,-500.0,0.00013753,2]
[331839847,1720789852336,-614.17,0.00013753,2]
[331839848,1720789852346,-500.0,0.00013753,2]
[331839849,1720789852355,-723.43,0.00013753,2]
[331839850,1720789852364,-500.0,0.00013753,2]
[331839851,1720789852373,-835.15,0.00013753,2]
[331839852,1720789852382,-500.0,0.00013753,2]
[331839853,1720789852392,-500.0,0.00013753,2]
[331839854,1720789852401,-676.94,0.00013753,2]
[331839855,1720789852410,-500.0,0.00013753,2]
[331839856,1720789852420,-500.0,0.00013753,2]
[331839857,1720789852429,-500.0,0.00013753,2]
[331839858,1720789852438,-500.0,0.00013753,2]
[331839859,1720789852447,-500.0,0.00013753,2]
[331839860,1720789852457,-573.47,0.00013753,2]
[331839861,1720789852467,-678.03,0.00013753,2]
[331839862,1720789852476,-500.0,0.00013753,2]
[331839863,1720789852486,-626.32,0.00013753,2]
[331839864,1720789852495,-769.9,0.00013753,2]
[331839865,1720789852503,-612.75,0.00013753,2]
[331839866,1720789852512,-500.0,0.00013753,2]
[331839867,1720789852521,-500.0,0.00013753,2]
[331839868,1720789852530,-500.0,0.00013753,2]
[331839869,1720789852540,-500.0,0.00013753,2]
[331839870,1720789852549,-500.0,0.00013753,2]
[331839871,1720789852557,-500.0,0.00013753,2]
[331839872,1720789852567,-500.0,0.00013753,2]
[331839873,1720789852576,-410.32982313,0.00013753,2]
[331839874,1720789852585,-500.0,0.00013753,2]
[331839875,1720789852597,-500.0,0.00013753,2]
[331839876,1720789852606,-500.0,0.00013753,2]
[331839877,1720789852616,-500.0,0.00013753,2]
[331839878,1720789852625,-500.0,0.00013753,2]
[331839879,1720789852635,-500.0,0.00013753,2]
[331839880,1720789852644,-500.0,0.00013753,2]
[331839881,1720789852654,-500.0,0.00013753,2]
[331839882,1720789852663,-500.0,0.00013753,2]
[331839883,1720789852674,-500.0,0.00013753,2]
[331839884,1720789852684,-500.0,0.00013753,2]
[331839885,1720789852695,-500.0,0.00013753,2]
[331839886,1720789852704,-500.0,0.00013753,2]
[331839887,1720789852713,-500.0,0.00013753,2]
[331839888,1720789852722,-500.0,0.00013753,2]
[331839889,1720789852731,-500.0,0.00013753,2]
[331839890,1720789852741,-500.0,0.00013753,2]
[331839891,1720789852750,-500.0,0.00013753,2]
[331839892,1720789852759,-500.0,0.00013753,2]
[331839893,1720789852768,-500.0,0.00013753,2]
[331839894,1720789852778,-500.0,0.00013753,2]
[331839895,1720789852787,-513.53,0.00013753,2]
[331839896,1720789852797,-500.0,0.00013753,2]
[331839897,1720789852806,-500.0,0.00013753,2]
[331839898,1720789852815,-707.43,0.00013753,2]
[331839899,1720789852824,-500.0,0.00013753,2]
[331839900,1720789852834,-587.78,0.00013753,2]
[331839901,1720789852843,-500.0,0.00013753,2]
[331839902,1720789852852,-618.46,0.00013753,2]
[331839903,1720789852863,-500.0,0.00013753,2]
[331839904,1720789852872,-500.0,0.00013753,2]
[331839905,1720789852881,-500.0,0.00013753,2]
[331839906,1720789852891,-500.0,0.00013753,2]
[331839907,1720789852901,-500.0,0.00013753,2]
[331839908,1720789852911,-500.0,0.00013753,2]
[331839909,1720789852920,-500.0,0.00013753,2]
[331839910,1720789852930,-629.68,0.00013753,2]
[331839911,1720789852940,-500.0,0.00013753,2]
[331839912,1720789852950,-500.0,0.00013753,2]
[331839913,1720789852960,-500.0,0.00013753,2]
[331839914,1720789852969,-500.0,0.00013753,2]
[331839915,1720789852978,-500.0,0.00013753,2]
[331839916,1720789852988,-985.73,0.00013753,2]
[331839917,1720789852997,-500.0,0.00013753,2]
[331839918,1720789853007,-500.0,0.00013753,2]
[331839919,1720789853016,-500.0,0.00013753,2]
[331839920,1720789853025,-500.0,0.00013753,2]
[331839921,1720789853034,-500.0,0.00013753,2]
[331839922,1720789853044,-500.0,0.00013753,2]
[331839923,1720789853053,-827.92,0.00013753,2]
[331839924,1720789853062,-500.0,0.00013753,2]
[331839925,1720789853071,-509.63,0.00013753,2]
[331839926,1720789853081,-500.0,0.00013753,2]
[331839927,1720789853090,-500.0,0.00013753,2]
[331839928,1720789853099,-500.0,0.00013753,2]
[331839929,1720789853109,-500.0,0.00013753,2]
[331839930,1720789853119,-500.0,0.00013753,2]
[331839931,1720789853128,-500.0,0.00013753,2]
[331839932,1720789853137,-681.55,0.00013753,2]
[331839933,1720789853147,-500.0,0.00013753,2]
[331839934,1720789853156,-500.0,0.00013753,2]
[331839935,1720789853165,-500.0,0.00013753,2]
[331839936,1720789853175,-537.0,0.00013753,2]
[331839937,1720789853184,-645.05,0.00013753,2]
[331839938,1720789853193,-627.7996731,0.00013753,2]
[331839939,1720789853203,-500.0,0.00013753,2]
[331839940,1720789853212,-640.92,0.00013753,2]
[331839941,1720789853222,-500.0,0.00013753,2]
[331839942,1720789853231,-1445.36,0.00013753,2]
[331839943,1720789853240,-500.0,0.00013753,2]
[331839944,1720789853250,-820.69,0.00013753,2]
[331839945,1720789853260,-597.9,0.00013753,2]
[331839946,1720789853269,-500.0,0.00013753,2]
[331839947,1720789853279,-500.0,0.00013753,2]
[331839948,1720789853288,-500.0,0.00013753,2]
[331839949,1720789853297,-500.0,0.00013753,2]
[331839950,1720789853306,-534.28,0.00013753,2]
[331839951,1720789853315,-1393.2,0.00013753,2]
[331839952,1720789853324,-500.0,0.00013753,2]
[331839953,1720789853333,-500.0,0.00013753,2]
[331839954,1720789853342,-153.66000003,0.00013753,2]
[331839955,1720789853351,-500.0,0.00013753,2]
[331839956,1720789853360,-500.0,0.00013753,2]
[331839957,1720789853370,-500.0,0.00013753,2]
[331839958,1720789853379,-826.27,0.00013753,2]
[331839959,1720789853389,-500.0,0.00013753,2]
[331839960,1720789853397,-500.0,0.00013753,2]
[331839961,1720789853406,-1145.05,0.00013753,2]
[331839962,1720789853416,-929.19,0.00013753,2]
[331839963,1720789853425,-500.0,0.00013753,2]
[331839964,1720789853435,-604.55,0.00013753,2]
[331839965,1720789853444,-500.0,0.00013753,2]
[331839966,1720789853454,-636.01,0.00013753,2]
[331839967,1720789853464,-705.51,0.00013753,2]
[331839968,1720789853473,-500.0,0.00013753,2]
[331839969,1720789853482,-500.0,0.00013753,2]
[331839970,1720789853492,-500.0,0.00013753,2]
[331839971,1720789853502,-500.0,0.00013753,2]
[331839972,1720789853513,-500.0,0.00013753,2]
[331839973,1720789853522,-500.0,0.00013753,2]
[331839974,1720789853531,-720.27,0.00013753,2]
[331839975,1720789853542,-500.0,0.00013753,2]
[331839976,1720789853552,-500.0,0.00013753,2]
[331839977,1720789853562,-500.0,0.00013753,2]
[331839978,1720789853572,-706.7,0.00013753,2]
[331839979,1720789853581,-936.55,0.00013753,2]
[331839980,1720789853593,-500.0,0.00013753,2]
[331839981,1720789853602,-502.55,0.00013753,2]
[331839982,1720789853611,-500.0,0.00013753,2]
[331839983,1720789853621,-527.5,0.00013753,2]
[331839984,1720789853631,-350.0,0.00013753,2]
[331839985,1720789853640,-350.0,0.00013753,2]
[331839986,1720789853649,-350.0,0.00013753,2]
[331839987,1720789853658,-350.0,0.00013753,2]
[331839988,1720789853667,-350.0,0.00013753,2]
[331839989,1720789853677,-1506.68,0.00013753,2]
[331839990,1720789853686,-500.0,0.00013753,2]
[331839991,1720789853696,-350.0,0.00013753,2]
[331839992,1720789853705,-859.99,0.00013753,2]
[331839993,1720789853714,-638.57,0.00013753,2]
[331839994,1720789853723,-500.0,0.00013753,2]
[331839995,1720789853732,-500.0,0.00013753,2]
[331839996,1720789853741,-579.19,0.00013753,2]
[331839997,1720789853751,-500.0,0.00013753,2]
[331839998,1720789853760,-500.0,0.00013753,2]
[331839999,1720789853769,-350.0,0.00013753,2]
[331840000,1720789853779,-350.0,0.00013753,2]
[331840001,1720789853788,-350.0,0.00013753,2]
[331840002,1720789853797,-500.0,0.00013753,2]
[331840003,1720789853806,-500.0,0.00013753,2]
[331840004,1720789853815,-350.0,0.00013753,2]
[331840005,1720789853824,-500.0,0.00013753,2]
[331840006,1720789853834,-500.0,0.00013753,2]
[331840007,1720789853843,-1078.81,0.00013753,2]
[331840008,1720789853852,-730.99,0.00013753,2]
[331840009,1720789853861,-519.37,0.00013753,2]
[331840010,1720789853871,-1123.7,0.00013753,2]
[331840011,1720789853880,-653.68,0.00013753,2]
[331840012,1720789853890,-500.0,0.00013753,2]
[331840013,1720789853899,-875.36,0.00013753,2]
[331840014,1720789853908,-500.0,0.00013753,2]
[331840015,1720789853918,-500.0,0.00013753,2]
[331840016,1720789853928,-500.0,0.00013753,2]
[331840017,1720789853938,-734.94,0.00013753,2]
[331840018,1720789853947,-500.0,0.00013753,2]
[331840019,1720789853958,-500.0,0.00013753,2]
[331840020,1720789853969,-500.0,0.00013753,2]
[331840021,1720789853978,-916.44,0.00013753,2]
[331840022,1720789853987,-500.0,0.00013753,2]
[331840023,1720789853997,-500.0,0.00013753,2]
[331840024,1720789854006,-500.0,0.00013753,2]
[331840025,1720789854017,-865.6,0.00013753,2]
[331840026,1720789854026,-500.0,0.00013753,2]
[331840027,1720789854036,-500.0,0.00013753,2]
[331840028,1720789854046,-540.41,0.00013753,2]
[331840029,1720789854056,-500.0,0.00013753,2]
[331840030,1720789854068,-500.0,0.00013753,2]
[331840031,1720789854077,-500.0,0.00013753,2]
[331840032,1720789854086,-500.0,0.00013753,2]
[331840033,1720789854095,-562.57,0.00013753,2]
[331840034,1720789854105,-500.0,0.00013753,2]
[331840035,1720789854114,-500.0,0.00013753,2]
[331840036,1720789854123,-500.0,0.00013753,2]
[331840037,1720789854133,-500.0,0.00013753,2]
[331840038,1720789854143,-500.0,0.00013753,2]
[331840039,1720789854153,-500.0,0.00013753,2]
[331840040,1720789854163,-526.74,0.00013753,2]
[331840041,1720789854173,-572.32,0.00013753,2]
[331840042,1720789854182,-720.06,0.00013753,2]
[331840043,1720789854191,-792.18,0.00013753,2]
[331840044,1720789854200,-500.0,0.00013753,2]
[331840045,1720789854210,-779.87,0.00013753,2]
[331840046,1720789854219,-642.64,0.00013753,2]